fUSD/lending_fUSD_20240628
["ID","MTS","AMOUNT","RATE_DAILY","PERIOD"]
[330548733,1719561190128,-14843.86,0.00021917,3]
[330548734,1719561190138,-8136.93,0.00021917,3]
[330548735,1719561190148,-917.05,0.00021917,3]
[330548736,1719561190158,-500.0,0.00021917,3]
[330548737,1719561190168,-500.0,0.00021917,3]
[330548738,1719561190178,-524.36,0.00021917,3]
[330548739,1719561190188,-1404.66,0.00021917,3]
[330548740,1719561190197,-500.0,0.00021917,3]
[330548741,1719561190207,-687.75,0.00021917,3]
[330548742,1719561190217,-590.48,0.00021917,3]
[330548743,1719561190227,-9718.8,0.00021917,3]
[330548744,1719561190236,-500.0,0.00021917,3]
[330548745,1719561190246,-2153.44,0.00021917,3]
[330548746,1719561190257,-1961.45,0.00021917,3]
[330548747,1719561190267,-611.45182589,0.00021917,3]
[330548748,1719561190276,-2726.91,0.00021917,3]
[330548749,1719561190286,-245.19796852,0.00021917,3]
[330548750,1719561190295,-30319.25,0.00021917,3]
[330548751,1719561190305,-977.64,0.00021917,3]
[330548752,1719561190315,-510.83,0.00021917,3]
[330548753,1719561190329,-627.05,0.00021917,3]
[330548754,1719561190338,-1308.73,0.00021917,3]
[330548755,1719561190347,-1727.28,0.00021917,3]
[330548756,1719561190357,-500.0,0.00021917,3]
[330548757,1719561190366,-500.0,0.00021917,3]
[330548758,1719561190377,-971.07,0.00021917,3]
[330548759,1719561190386,-500.0,0.00021917,3]
[330548760,1719561190395,-1351.8,0.00021917,3]
[330548761,1719561190405,-2608.81,0.00021917,3]
[330548762,1719561190414,-4237.77,0.00021917,3]
[330548763,1719561190423,-500.0,0.00021917,3]
[330548764,1719561190433,-4285.86,0.00021917,3]
[330548765,1719561190443,-1262.6,0.00021917,3]
[330548766,1719561190453,-1433.34,0.00021917,3]
[330548767,1719561190462,-154.84384914,0.00021917,3]
[330548768,1719561190472,-500.0,0.00021917,3]
[330548769,1719561190481,-2837.45,0.00021917,3]
[330548770,1719561190491,-2531.85,0.00021917,3]
[330548771,1719561190501,-6336.99,0.00021917,3]
[330548772,1719561190510,-500.0,0.00021917,3]
[330548773,1719561190520,-12890.69,0.00021917,3]
[330548774,1719561190530,-8252.27,0.00021917,3]
[330548775,1719561190540,-2352.32,0.00021917,3]
[330548776,1719561190550,-500.0,0.00021917,3]
[330548777,1719561190560,-545.53,0.00021917,3]
[330548778,1719561190569,-5449.9,0.00021917,3]
[330548779,1719561190582,-8509.27,0.00021917,3]
[330548780,1719561190591,-1047.12,0.00021917,3]
[330548781,1719561190600,-2403.33,0.00021917,3]
[330548782,1719561190610,-1711.25,0.00021917,3]
[330548783,1719561190619,-500.0,0.00021917,3]
[330548784,1719561190628,-9077.06,0.00021917,3]
[330548785,1719561190638,-500.0,0.00021917,3]
[330548786,1719561190648,-500.0,0.00021917,3]
[330548787,1719561190657,-1089.03,0.00021917,3]
[330548788,1719561190668,-500.0,0.00021917,3]
[330548789,1719561190677,-2100.4,0.00021917,3]
[330548790,1719561190687,-1206.84,0.00021917,3]
[330548791,1719561190696,-2043.62,0.00021917,3]
[330548792,1719561190706,-48268.7,0.00021917,3]
[330548793,1719561190716,-3104.35,0.00021917,3]
[330548794,1719561190725,-500.0,0.00021917,3]
[330548795,1719561190735,-468.71499736,0.00021917,3]
[330548796,1719561190745,-521.68,0.00021917,3]
[330548797,1719561190754,-949.58,0.00021917,3]
[330548798,1719561190775,-1255.94,0.00021917,3]
[330548799,1719561190785,-1571.3,0.00021917,3]
[330548800,1719561190795,-4077.23,0.00021917,3]
[330548801,1719561190806,-602.61,0.00021917,3]
[330548802,1719561190815,-11111.01,0.00021917,3]
[330548803,1719561190827,-500.0,0.00021917,3]
[330548804,1719561190836,-1358.81,0.00021917,3]
[330548805,1719561190845,-227.54332439,0.00021917,3]
[330548806,1719561190854,-1300.0,0.00021917,3]
[330548807,1719561190867,-1332.94,0.00021917,3]
[330548808,1719561190878,-1544.91,0.00021917,3]
[330548809,1719561190888,-712.95,0.00021917,3]
[330548810,1719561190898,-1446.93,0.00021917,3]
[330548811,1719561190909,-707.93,0.00021917,3]
[330548812,1719561190919,-42236.37,0.00021917,3]
[330548813,1719561190929,-850.09,0.00021917,3]
[330548814,1719561190940,-2886.12,0.00021917,3]
[330548815,1719561190950,-945.42,0.00021917,3]
[330548816,1719561190959,-482.24085716,0.00021917,3]
[330548817,1719561190970,-500.0,0.00021917,3]
[330548818,1719561190979,-594.36,0.00021917,3]
[330548819,1719561190988,-1924.21,0.00021917,3]
[330548820,1719561190998,-1289.14,0.00021917,3]
[330548821,1719561191008,-12586.2,0.00021917,3]
[330548822,1719561191018,-768.96,0.00021917,3]
[330548823,1719561191029,-5222.3,0.00021917,3]
[330548824,1719561191039,-2337.53,0.00021917,3]
[330548825,1719561191048,-831.9,0.00021917,3]
[330548826,1719561191057,-500.0,0.00021917,3]
[330548827,1719561191067,-460.54473697,0.00021917,3]
[330548828,1719561191080,-500.0,0.00021917,3]
[330548829,1719561191089,-500.0,0.00021917,3]
[330548830,1719561191099,-628.24,0.00021917,3]
[330548831,1719561191109,-5851.92,0.00021917,3]
[330548832,1719561191119,-598.11,0.00021917,3]
[330548833,1719561191128,-603.56,0.00021917,3]
[330548834,1719561191137,-1283.39,0.00021917,3]
[330548835,1719561191146,-1699.87,0.00021917,3]
[330548836,1719561191156,-2793.12,0.00021917,3]
[330548837,1719561191165,-671.55,0.00021917,3]
[330548838,1719561191174,-4870.14,0.00021917,3]
[330548839,1719561191184,-540.72,0.00021917,3]
[330548840,1719561191193,-500.0,0.00021917,3]
[330548841,1719561191203,-721.87,0.00021917,3]
[330548842,1719561191212,-500.0,0.00021917,3]
[330548843,1719561191222,-966.94,0.00021917,3]
[330548844,1719561191231,-505.4,0.00021917,3]
[330548845,1719561191240,-500.0,0.00021917,3]
[330548846,1719561191250,-1685.84,0.00021917,3]
[330548847,1719561191259,-704.49,0.00021917,3]
[330548848,1719561191269,-2147.27,0.00021917,3]
[330548849,1719561191278,-500.0,0.00021917,3]
[330548850,1719561191287,-500.0,0.00021917,3]
[330548851,1719561191297,-574.19,0.00021917,3]
[330548852,1719561191307,-4610.65,0.00021917,3]
[330548853,1719561191316,-3996.23,0.00021917,3]
[330548854,1719561191329,-2065.71,0.00021917,3]
[330548855,1719561191338,-500.0,0.00021917,3]
[330548856,1719561191347,-3987.89,0.00021917,3]
[330548857,1719561191357,-587.38,0.00021917,3]
[330548858,1719561191367,-687.46,0.00021917,3]
[330548859,1719561191377,-3336.77,0.00021917,3]
[330548860,1719561191386,-1330.45,0.00021917,3]
[330548861,1719561191396,-3314.18,0.00021917,3]
[330548862,1719561191406,-500.0,0.00021917,3]
[330548863,1719561191416,-872.41,0.00021917,3]
[330548864,1719561191426,-500.0,0.00021917,3]
[330548865,1719561191435,-810.49,0.00021917,3]
[330548866,1719561191445,-1974.25,0.00021917,3]
[330548867,1719561191454,-500.0,0.00021917,3]
[330548868,1719561191464,-5236.64,0.00021917,3]
[330548869,1719561191474,-642.68,0.00021917,3]
[330548870,1719561191484,-4552.9,0.00021917,3]
[330548871,1719561191494,-32404.44,0.00021917,3]
[330548872,1719561191504,-795.7,0.00021917,3]
[330548873,1719561191514,-694.42,0.00021917,3]
[330548874,1719561191523,-790.32,0.00021917,3]
[330548875,1719561191533,-24101.78,0.00021917,3]
[330548876,1719561191543,-4218.61,0.00021917,3]
[330548877,1719561191552,-922.73,0.00021917,3]
[330548878,1719561191562,-4199.29,0.00021917,3]
[330548879,1719561191576,-7764.7,0.00021917,3]
[330548880,1719561191587,-717.49,0.00021917,3]
[330548881,1719561191596,-897.41,0.00021917,3]
[330548882,1719561191606,-1450.89,0.00021917,3]
[330548883,1719561191615,-701.5,0.00021917,3]
[330548884,1719561191624,-4300.22,0.00021917,3]
[330548885,1719561191634,-1033.21,0.00021917,3]
[330548886,1719561191643,-500.0,0.00021917,3]
[330548887,1719561191652,-776.36,0.00021917,3]
[330548888,1719561191661,-608.64,0.00021917,3]
[330548889,1719561191671,-500.0,0.00021917,3]
[330548890,1719561191681,-9904.94,0.00021917,3]
[330548891,1719561191690,-640.51,0.00021917,3]
[330548892,1719561191701,-1429.64,0.00021917,3]
[330548893,1719561191711,-431.83,0.00021917,3]
[330548894,1719561191721,-3512.53,0.00021917,3]
[330548895,1719561191731,-573.81,0.00021917,3]
[330548896,1719561191741,-1577.54,0.00021917,3]
[330548897,1719561191751,-2085.15,0.00021917,3]
[330548898,1719561191761,-500.0,0.00021917,3]
[330548899,1719561191773,-930.57,0.00021917,3]
[330548900,1719561191783,-4334.27,0.00021917,3]
[330548901,1719561191793,-1068.95,0.00021917,3]
[330548902,1719561191803,-1596.89,0.00021917,3]
[330548903,1719561191812,-1065.22,0.00021917,3]
[330548904,1719561191825,-1080.72,0.00021917,3]
[330548905,1719561191835,-3797.01,0.00021917,3]
[330548906,1719561191844,-151.0,0.00021918,2]
[330548907,1719561191854,-151.0,0.00021918,2]
[330548908,1719561191866,-151.0,0.00021918,2]
[330548909,1719561191876,-151.0,0.00021918,2]
[330548910,1719561191885,-151.0,0.00021918,2]
[330548911,1719561191895,-301.78202,0.00021918,2]
[330548912,1719561191906,-1145.08,0.00021918,2]
[330548913,1719561191915,-151.0,0.00021918,2]
[330548914,1719561191925,-151.0,0.00021918,2]
[330548915,1719561191935,-151.0,0.00021918,2]
[330548916,1719561191952,-154.033667,0.00021918,2]
[330548917,1719561191965,-170.95150643,0.00021918,2]
[330548918,1719561191975,-150.0,0.00021918,2]
[330548919,1719561191986,-150.0,0.00021918,2]
[330548920,1719561191996,-155.22395194,0.00021918,2]
[330548921,1719561192007,-351.159259,0.00021924,2]
[330548922,1719561192018,-17070.950037,0.00021924,2]
[330548923,1719561192028,-239.716356,0.00021924,2]
[330548924,1719561192038,-12619.30583,0.00021924,2]
[330548925,1719561192048,-419.949086,0.00021924,2]
[330548926,1719561192058,-526.175237,0.00021924,2]
[330548927,1719561192069,-19630.764364,0.00021924,2]
[330548928,1719561192082,-159.644349,0.00021924,2]
[330548929,1719561192093,-11380.633358,0.00021924,2]
[330548930,1719561192103,-8403.655252,0.00021924,2]
[330548931,1719561192113,-1164.601366,0.00021924,2]
[330548932,1719561192123,-212.400839,0.00021924,2]
[330548933,1719561192133,-174.897051,0.00021924,2]
[330548934,1719561192144,-1569.985052,0.00021924,2]
[330548935,1719561192154,-150.0,0.0002196,2]
[330548936,1719561192165,-327.02420312,0.0002197,2]
[330548937,1719561192175,-155.0,0.00021976,2]
[330548938,1719561192186,-188.08625707,0.00021981,2]
[330548939,1719561192196,-155.0,0.00021983,2]
[330548940,1719561192207,-155.0,0.00021983,2]
[330548941,1719561192218,-885.85075113,0.00021993,2]
[330548942,1719561192228,-867.21230229,0.00021999,2]
[330548943,1719561192238,-16000.0,0.00022,5]
[330548944,1719561192249,-500.0,0.00022,2]
[330548945,1719561192259,-19591.43621407,0.00022,5]
[330548946,1719561192269,-5128.0,0.00022,2]
[330548947,1719561192279,-159.51678581,0.00022,2]
[330548948,1719561192289,-30905.89698826,0.00022,2]
[330548949,1719561192299,-850.0,0.00022,2]
[330548950,1719561192309,-379.5054155,0.00022,3]
[330548951,1719561192320,-187.64981508,0.00022,15]
[330548952,1719561192334,-170.0,0.00022,2]
[330548953,1719561192344,-219.0,0.0002201,2]
[330548954,1719561192357,-214.0,0.0002201,2]
[330548955,1719561192367,-926.86,0.00022013,2]
[330548956,1719561192378,-715.63640315,0.00022022,2]
[330548957,1719561192388,-311.06,0.000221,2]
[330548958,1719561192398,-168.51,0.00022135,2]
[330548959,1719561192408,-256.29313938,0.00022144,2]
[330548960,1719561192418,-150.0,0.00022164,2]
[330548961,1719561192429,-863.07,0.00022191,3]
[330548962,1719561192439,-907.53,0.00022191,3]
[330548963,1719561192450,-2122.53,0.00022191,3]
[330548964,1719561192460,-1141.96,0.00022191,3]
[330548965,1719561192471,-1690.68,0.00022191,3]
[330548966,1719561192482,-870.65,0.00022191,3]
[330548967,1719561192492,-503.68,0.00022191,3]
[330548968,1719561192503,-500.0,0.00022191,3]
[330548969,1719561192513,-504.05,0.00022191,3]
[330548970,1719561192523,-846.93,0.00022191,3]
[330548971,1719561192533,-1149.92,0.00022191,3]
[330548972,1719561192543,-1397.93,0.00022191,3]
[330548973,1719561192554,-1748.17,0.00022191,3]
[330548974,1719561192564,-500.0,0.00022191,3]
[330548975,1719561192575,-542.84,0.00022191,3]
[330548976,1719561192585,-500.0,0.00022191,3]
[330548977,1719561192595,-693.92,0.00022191,3]
[330548978,1719561192605,-792.31,0.00022191,3]
[330548979,1719561192615,-500.0,0.00022191,3]
[330548980,1719561192626,-908.05,0.00022191,3]
[330548981,1719561192638,-500.0,0.00022191,3]
[330548982,1719561192659,-1448.94,0.00022191,3]
[330548983,1719561192669,-500.0,0.00022191,3]
[330548984,1719561192679,-500.0,0.00022191,3]
[330548985,1719561192689,-1782.8,0.00022191,3]
[330548986,1719561192700,-500.0,0.00022191,3]
[330548987,1719561192710,-856.16,0.00022191,3]
[330548988,1719561192720,-539.97,0.00022191,3]
[330548989,1719561192731,-500.0,0.00022191,3]
[330548990,1719561192742,-1183.51,0.00022191,3]
[330548991,1719561192752,-500.0,0.00022191,3]
[330548992,1719561192762,-1199.91,0.00022191,3]
[330548993,1719561192772,-1192.41,0.00022191,3]
[330548994,1719561192782,-2299.92,0.00022191,3]
[330548995,1719561192792,-500.0,0.00022191,3]
[330548996,1719561192804,-654.32,0.00022191,3]
[330548997,1719561192815,-673.16,0.00022191,3]
[330548998,1719561192827,-500.0,0.00022191,3]
[330548999,1719561192838,-1135.59,0.00022191,3]
[330549000,1719561192849,-718.46,0.00022191,3]
[330549001,1719561192862,-500.0,0.00022191,3]
[330549002,1719561192873,-500.0,0.00022191,3]
[330549003,1719561192882,-500.0,0.00022191,3]
[330549004,1719561192893,-828.5,0.00022191,3]
[330549005,1719561192903,-500.0,0.00022191,3]
[330549006,1719561192913,-500.0,0.00022191,3]
[330549007,1719561192923,-500.0,0.00022191,3]
[330549008,1719561192933,-1470.46,0.00022191,2]
[330549009,1719561192946,-568.18,0.00022191,3]
[330549010,1719561192957,-1942.8,0.00022191,3]
[330549011,1719561192968,-500.0,0.00022191,3]
[330549012,1719561192978,-500.0,0.00022191,3]
[330549013,1719561192988,-500.0,0.00022191,3]
[330549014,1719561192998,-559.8,0.00022191,3]
[330549015,1719561193009,-687.15,0.00022191,3]
[330549016,1719561193019,-557.81,0.00022191,3]
[330549017,1719561193029,-1013.31,0.00022191,3]
[330549018,1719561193039,-1313.87,0.00022191,3]
[330549019,1719561193049,-555.71,0.00022191,3]
[330549020,1719561193060,-1142.83,0.00022191,3]
[330549021,1719561193070,-606.98,0.00022191,3]
[330549022,1719561193082,-157.14878146,0.00022191,3]
[330549023,1719561193092,-1090.69,0.00022191,3]
[330549024,1719561193101,-500.0,0.00022191,3]
[330549025,1719561193112,-500.0,0.00022191,3]
[330549026,1719561193122,-741.97,0.00022191,3]
[330549027,1719561193133,-500.0,0.00022191,3]
[330549028,1719561193143,-833.46,0.00022191,3]
[330549029,1719561193153,-858.42,0.00022191,3]
[330549030,1719561193164,-784.18,0.00022191,3]
[330549031,1719561193174,-500.0,0.00022191,3]
[330549032,1719561193184,-676.3,0.00022191,3]
[330549033,1719561193194,-640.7,0.00022191,3]
[330549034,1719561193206,-547.64,0.00022191,3]
[330549035,1719561193216,-1509.32,0.00022191,3]
[330549036,1719561193226,-1104.3,0.00022191,3]
[330549037,1719561193235,-775.75,0.00022191,3]
[330549038,1719561193245,-500.0,0.00022191,3]
[330549039,1719561193543,-1251.26,0.00022191,3]
[330549040,1719561193562,-774.67,0.00022191,3]
[330549041,1719561193581,-1975.28,0.00022191,3]
[330549042,1719561193590,-500.0,0.00022191,3]
[330549043,1719561193600,-704.42,0.00022191,3]
[330549044,1719561193609,-917.85,0.00022191,3]
[330549045,1719561193619,-1651.77,0.00022191,3]
[330549046,1719561193629,-1425.82,0.00022191,3]
[330549047,1719561193638,-500.0,0.00022191,3]
[330549048,1719561193648,-500.0,0.00022191,3]
[330549049,1719561193658,-545.19,0.00022191,3]
[330549050,1719561193668,-575.69,0.00022191,3]
[330549051,1719561193677,-500.0,0.00022191,3]
[330549052,1719561193687,-998.16,0.00022191,3]
[330549053,1719561193696,-608.28219561,0.00022191,3]
[330549054,1719561193706,-586.61,0.00022191,3]
[330549055,1719561193715,-768.59,0.00022191,3]
[330549056,1719561193726,-848.48,0.00022191,3]
[330549057,1719561193735,-618.73,0.00022191,3]
[330549058,1719561193745,-2391.81,0.00022191,3]
[330549059,1719561193755,-500.0,0.00022191,3]
[330549060,1719561193765,-764.56,0.00022191,3]
[330549061,1719561193774,-1272.64,0.00022191,3]
[330549062,1719561193784,-688.17,0.00022191,3]
[330549063,1719561193793,-628.0,0.00022191,3]
[330549064,1719561193803,-652.19,0.00022191,3]
[330549065,1719561193812,-440.73476055,0.00022191,3]
[330549066,1719561193822,-1144.92,0.00022191,3]
[330549067,1719561193838,-8009.39,0.00022191,3]
[330549068,1719561193848,-500.0,0.00022191,3]
[330549069,1719561193857,-500.0,0.00022191,3]
[330549070,1719561193872,-397.10411451,0.00022191,3]
[330549071,1719561193881,-3067.21,0.00022191,3]
[330549072,1719561193890,-937.69,0.00022191,3]
[330549073,1719561193899,-1469.95,0.00022191,3]
[330549074,1719561193910,-608.87,0.00022191,3]
[330549075,1719561193920,-530.38,0.00022191,3]
[330549076,1719561193929,-698.09,0.00022191,3]
[330549077,1719561193939,-1828.93,0.00022191,3]
[330549078,1719561193950,-931.89,0.00022191,3]
[330549079,1719561193960,-2389.09,0.00022191,3]
[330549080,1719561193970,-500.0,0.00022191,3]
[330549081,1719561193979,-500.0,0.00022191,3]
[330549082,1719561193988,-2237.48,0.00022191,3]
[330549083,1719561193998,-809.41,0.00022191,3]
[330549084,1719561194008,-548.11,0.00022191,3]
[330549085,1719561194018,-1079.6,0.00022191,3]
[330549086,1719561194028,-844.19,0.00022191,3]
[330549087,1719561194038,-1576.09,0.00022191,3]
[330549088,1719561194048,-1489.92,0.00022191,3]
[330549089,1719561194058,-1957.19,0.00022191,3]
[330549090,1719561194067,-912.0,0.00022191,3]
[330549091,1719561194084,-688.77,0.00022191,3]
[330549092,1719561194094,-2356.49,0.00022191,3]
[330549093,1719561194103,-2130.37,0.00022191,3]
[330549094,1719561194113,-838.95,0.00022191,3]
[330549095,1719561194122,-596.16,0.00022191,3]
[330549096,1719561194132,-1793.14,0.00022191,3]
[330549097,1719561194141,-2016.92,0.00022191,3]
[330549098,1719561194151,-543.6,0.00022191,3]
[330549099,1719561194161,-1344.1,0.00022191,3]
[330549100,1719561194171,-2804.61,0.00022191,3]
[330549101,1719561194182,-2335.31,0.00022191,3]
[330549102,1719561194191,-966.61,0.00022191,3]
[330549103,1719561194201,-1555.99,0.00022191,3]
[330549104,1719561194211,-1299.02,0.00022191,3]
[330549105,1719561194221,-2999.18,0.00022191,3]
[330549106,1719561194231,-1622.54,0.00022191,3]
[330549107,1719561194240,-1982.91,0.00022191,3]
[330549108,1719561194249,-1196.1,0.00022191,3]
[330549109,1719561194259,-580.04,0.00022191,3]
[330549110,1719561194268,-585.72,0.00022191,3]
[330549111,1719561194278,-1835.49,0.00022191,3]
[330549112,1719561194288,-829.04,0.00022191,3]
[330549113,1719561194298,-500.0,0.00022191,3]
[330549114,1719561194307,-500.0,0.00022191,3]
[330549115,1719561194316,-500.0,0.00022191,3]
[330549116,1719561194327,-1053.06,0.00022191,3]
[330549117,1719561194337,-500.0,0.00022191,3]
[330549118,1719561194346,-926.48,0.00022191,3]
[330549119,1719561194355,-2025.35,0.00022191,3]
[330549120,1719561194364,-520.99,0.00022191,3]
[330549121,1719561194373,-2045.94,0.00022191,3]
[330549122,1719561194382,-1125.69,0.00022191,3]
[330549123,1719561194391,-3299.83,0.00022191,3]
[330549124,1719561194402,-652.91,0.00022191,3]
[330549125,1719561194412,-515.76,0.00022191,3]
[330549126,1719561194422,-1218.63,0.00022191,3]
[330549127,1719561194431,-764.42,0.00022191,3]
[330549128,1719561194440,-500.0,0.00022191,3]
[330549129,1719561194450,-807.73,0.00022191,3]
[330549130,1719561194460,-500.0,0.00022191,3]
[330549131,1719561194469,-500.0,0.00022191,3]
[330549132,1719561194479,-518.58,0.00022191,3]
[330549133,1719561194489,-500.0,0.00022191,3]
[330549134,1719561194499,-670.83,0.00022191,3]
[330549135,1719561194509,-500.0,0.00022191,3]
[330549136,1719561194519,-500.0,0.00022191,3]
[330549137,1719561194528,-717.38,0.00022191,3]
[330549138,1719561194538,-1228.76,0.00022191,3]
[330549139,1719561194548,-1190.64,0.00022191,3]
[330549140,1719561194558,-500.0,0.00022191,3]
[330549141,1719561194568,-1204.53,0.00022191,3]
[330549142,1719561194580,-500.0,0.00022191,3]
[330549143,1719561194590,-1119.97,0.00022191,3]
[330549144,1719561194599,-4412.5,0.00022191,3]
[330549145,1719561194609,-1038.25,0.00022191,3]
[330549146,1719561194619,-930.05,0.00022191,3]
[330549147,1719561194629,-1337.55,0.00022191,3]
[330549148,1719561194639,-4811.88,0.00022191,3]
[330549149,1719561194650,-4473.58,0.00022191,3]
[330549150,1719561194660,-689.91,0.00022191,3]
[330549151,1719561194671,-500.0,0.00022191,3]
[330549152,1719561194680,-500.0,0.00022191,3]
[330549153,1719561194690,-816.16,0.00022191,3]
[330549154,1719561194700,-2445.0,0.00022191,3]
[330549155,1719561194710,-500.0,0.00022191,3]
[330549156,1719561194720,-1090.73,0.00022191,3]
[330549157,1719561194731,-1132.58,0.00022191,3]
[330549158,1719561194741,-500.0,0.00022191,3]
[330549159,1719561194751,-615.52,0.00022191,3]
[330549160,1719561194760,-1125.15,0.00022191,3]
[330549161,1719561194771,-481.60770734,0.00022191,3]
[330549162,1719561194782,-568.55,0.00022191,3]
[330549163,1719561194792,-500.0,0.00022191,3]
[330549164,1719561194802,-2267.1,0.00022191,3]
[330549165,1719561194812,-2510.06,0.00022191,3]
[330549166,1719561194822,-724.86,0.00022191,3]
[330549167,1719561194841,-759.55,0.00022191,3]
[330549168,1719561194850,-783.56,0.00022191,3]
[330549169,1719561194864,-500.0,0.00022191,3]
[330549170,1719561194873,-500.0,0.00022191,3]
[330549171,1719561194883,-1851.28,0.00022191,3]
[330549172,1719561194893,-2477.12,0.00022191,3]
[330549173,1719561194903,-2254.48,0.00022191,3]
[330549174,1719561194912,-500.0,0.00022191,3]
[330549175,1719561194922,-2145.27,0.00022191,3]
[330549176,1719561194931,-3000.49,0.00022191,3]
[330549177,1719561194943,-1339.23,0.00022191,3]
[330549178,1719561194953,-1120.11,0.00022191,3]
[330549179,1719561194963,-1458.45,0.00022191,3]
[330549180,1719561194973,-1203.63,0.00022191,3]
[330549181,1719561194982,-780.04,0.00022191,3]
[330549182,1719561194992,-500.0,0.00022191,3]
[330549183,1719561195001,-17654.57,0.00022191,3]
[330549184,1719561195011,-2156.78,0.00022191,3]
[330549185,1719561195021,-1038.74,0.00022191,3]
[330549186,1719561195030,-1367.37,0.00022191,3]
[330549187,1719561195040,-500.0,0.00022191,3]
[330549188,1719561195050,-1281.81,0.00022191,3]
[330549189,1719561195060,-500.0,0.00022191,3]
[330549190,1719561195072,-707.98,0.00022191,3]
[330549191,1719561195085,-2512.87,0.00022191,3]
[330549192,1719561195095,-500.0,0.00022191,3]
[330549193,1719561195105,-500.0,0.00022191,3]
[330549194,1719561195114,-692.45,0.00022191,3]
[330549195,1719561195123,-2622.42,0.00022191,3]
[330549196,1719561195133,-1810.79,0.00022191,3]
[330549197,1719561195143,-1233.32,0.00022191,3]
[330549198,1719561195152,-1142.92,0.00022191,3]
[330549199,1719561195162,-1361.17,0.00022191,3]
[330549200,1719561195172,-1277.67,0.00022191,3]
[330549201,1719561195182,-1346.62,0.00022191,3]
[330549202,1719561195191,-1322.18,0.00022191,3]
[330549203,1719561195200,-500.0,0.00022191,3]
[330549204,1719561195210,-552.58,0.00022191,3]
[330549205,1719561195219,-863.49,0.00022191,3]
[330549206,1719561195229,-2301.13,0.00022191,3]
[330549207,1719561195239,-4612.82,0.00022191,3]
[330549208,1719561195248,-500.0,0.00022191,3]
[330549209,1719561195258,-1538.87,0.00022191,3]
[330549210,1719561195267,-1624.52,0.00022191,3]
[330549211,1719561195277,-2577.63,0.00022191,3]
[330549212,1719561195287,-500.0,0.00022191,3]
[330549213,1719561195297,-500.0,0.00022191,3]
[330549214,1719561195307,-1509.29,0.00022191,3]
[330549215,1719561195316,-6138.1,0.00022191,3]
[330549216,1719561195328,-500.0,0.00022191,3]
[330549217,1719561195338,-1002.25,0.00022191,3]
[330549218,1719561195347,-1414.89,0.00022191,3]
[330549219,1719561195356,-1177.0,0.00022191,3]
[330549220,1719561195370,-1548.23,0.00022191,3]
[330549221,1719561195379,-1324.8,0.00022191,3]
[330549222,1719561195388,-1380.03,0.00022191,3]
[330549223,1719561195398,-1820.37,0.00022191,3]
[330549224,1719561195407,-705.74,0.00022191,3]
[330549225,1719561195416,-2472.64,0.00022191,3]
[330549226,1719561195426,-3381.95,0.00022191,3]
[330549227,1719561195436,-864.54,0.00022191,3]
[330549228,1719561195446,-5070.88,0.00022191,3]
[330549229,1719561195455,-2034.01,0.00022191,3]
[330549230,1719561195466,-1227.23,0.00022191,3]
[330549231,1719561195475,-1396.45,0.00022191,3]
[330549232,1719561195485,-2105.9,0.00022191,3]